Cogmind - Beta 14 @@@ ROGUE MODE // 2024.08.26 @ 09:17:32 Player: AppleSource Result: Self-destructed Performance ------------- Evolutions (2) 1000 Regions Visited (5) 1000 Robots Destroyed (29) 145 Value Destroyed (696) 696 Prototype IDs (23) 460 Alien Tech Used (0) 0 Bonus (354) 354 TOTAL SCORE: 3655 Bonus ------- Follower Combat Kills 97 Aligned with FarCom 300 Friendly Fire -43 Cogmind --------- Core Integrity 218/550 Matter 289/300 Energy 100/100 System Corruption 2% Temperature Cool (0) Movement Core (400) Ox7 Location -8/Materials Parts ------- > --- POWER (1) -------- (None) > --- PROPULSION (3) --- (None) > --- UTILITY (5) ------ Large Storage Unit > --- WEAPON (2) ------- Gauss Rifle > --- INVENTORY (15) --- Light Ion Engine Improved Heat Sink Superbattery (1500) Improved Sensor Array Signal Interpreter Transmission Jammer Powered Armor Particle Gun Particle Gun Heavy Laser Rocket Launcher Peak State ------------ > --- POWER ------------ Light Ion Engine > --- PROPULSION ------- Light Treads Light Treads > --- UTILITY ---------- Large Storage Unit Improved Sensor Array Particle Charger Medium Armor Plating Medium Armor Plating > --- WEAPON ----------- Medium Laser Particle Gun > --- INVENTORY -------- Light Ion Engine Improved Heat Sink Superbattery Signal Interpreter Transmission Jammer Powered Armor Gatling Laser Light Assault Rifle Light Assault Rifle Gauss Rifle Rocket Launcher Greatsword [Rating: 21] Favorites ----------- Power Ion Engine Engine Ion Engine Propulsion Light Treads Treads Light Treads Leg Carbon-fiber Leg Utility Large Storage Unit Device Particle Charger Storage Large Storage Unit Protection Light Armor Plating Weapon Light Assault Rifle Energy Gun Medium Laser Ballistic Gun Light Assault Rifle Launcher Grenade Launcher Slashing Weapon Greatsword Build | -11 -10 -10 -10 -9 -8 ------- Run | Yrd Mat Min Exi Min Mat Slots Evolved 4 | . . . . . 4 Power . | . . . . . . Propulsion 1 | . . . . . 1 Utility 3 | . . . . . 3 Weapon . | . . . . . . Parts Attached 31 | 6 2 . . 8 15 Power 2 | 1 . . . 1 . Engine 2 | 1 . . . 1 . Core . | . . . . . . Reactor . | . . . . . . Propulsion 5 | 2 . . . 1 2 Treads 3 | 2 . . . 1 . Leg 2 | . . . . . 2 Wheel . | . . . . . . Hover . | . . . . . . Flight . | . . . . . . Utility 7 | 1 2 . . . 4 Device 2 | . . . . . 2 Storage 2 | 1 1 . . . . Processor . | . . . . . . Hackware . | . . . . . . Protection 3 | . 1 . . . 2 Artifact . | . . . . . . Weapon 17 | 2 . . . 6 9 Energy Gun 5 | 1 . . . 1 3 Energy Cannon . | . . . . . . Ballistic Gun 7 | 1 . . . 1 5 Ballistic Cannon . | . . . . . . Launcher 4 | . . . . 4 . Special Weapon . | . . . . . . Impact Weapon . | . . . . . . Slashing Weapon 1 | . . . . . 1 Piercing Weapon . | . . . . . . Special Melee Weapon . | . . . . . . Unidentified Prototypes . | . . . . . . Corrupted Parts 1 | . . . . . 1 System Corruption 2 | . . . . . 2 Parts Lost 14 | . . . . 3 11 Power 2 | . . . . 1 1 Propulsion 4 | . . . . 1 3 Utility 4 | . . . . 1 3 Weapon 4 | . . . . . 4 Highest Loss Streak 6 | . . . . 2 6 To Critical Strikes . | . . . . . . Average Slot Usage (%) 89 | . 90 100 100 85 69 Engine 12 | . 14 14 14 13 8 Treads 24 | . 28 28 28 23 12 Device 1 | . . . . . 5 Storage 13 | . 14 14 14 14 9 Protection 10 | . 4 14 14 5 12 Energy Gun 10 | . 14 14 14 2 6 Ballistic Gun 9 | . 14 14 14 2 5 Launcher 6 | . . . . 23 5 Peak Build Rating 21 | 6 7 7 8 10 21 Average Rating 9 | 4 6 7 7 9 16 On Entrance 6 | . 6 7 7 8 10 Naked Turns . | . . . . . . Heaviest Build 46 | 13 31 31 31 34 46 Greatest Support 40 | 40 40 40 40 40 40 Greatest Overweight (x) 12 | 2 . . . 1 12 Average Overweight (x) . | . . . . . . Largest Inventory Capacity 15 | 8 15 15 15 15 15 Average Capacity 13 | 6 9 15 15 15 15 Most Carried 15 | 1 6 6 7 15 15 Average Carried 8 | . 3 5 6 11 14 Final Capacity 15 | 8 15 15 15 15 15 Final Carried 15 | 1 5 6 7 15 11 Class Distribution -------------------- 95% | Mutant 3% | Scavenger-Mutant Dominant Class ---------------- Mutant | -10/Materials Mutant | -10/Mines Mutant | -10/Exiles Mutant | -9/Mines Mutant | -8/Materials Resources | -11 -10 -10 -10 -9 -8 ----------- Run | Yrd Mat Min Exi Min Mat Matter Collected 549 | 115 199 15 . 86 134 Remotely . | . . . . . . Salvage Created 880 | . 252 219 . 87 322 Parts 69 | . 25 17 . 9 18 Haulers Intercepted 1 | . 1 . . . . Recyclers Shooed 3 | . 2 . . . 1 Parts Field Recycled . | . . . . . . Retrieved Matter . | . . . . . . Parts Self-Destructed . | . . . . . . Prevented . | . . . . . . Kills | -11 -10 -10 -10 -9 -8 ------- Run | Yrd Mat Min Exi Min Mat Combat Hostiles Destroyed 23 | . 5 7 . 5 6 Melee 1 | . . . . . 1 Guns 21 | . 5 7 . 4 5 AOE 1 | . . . . 1 . Classes Destroyed 7 | . 6 . . . 1 Worker 2 | . 1 1 . . . Builder 1 | . 1 . . . . Hauler 1 | . 1 . . . . Watcher 2 | . 2 . . . . Swarmer 11 | . 3 4 . 4 . Grunt 9 | . 2 3 . 1 3 Sentry 3 | . . . . . 3 Best Kill Streak 4 | . 3 4 . 4 3 Combat Bots Only 4 | . 2 4 . 4 3 Max Kills in Single Turn 1 | . 1 1 . 1 1 Gunslinging . | . . . . . . Exploded 1 | . . . . 1 . Melee 1 | . . . . . 1 Uniques/NPCs Destroyed . | . . . . . . Combat | -11 -10 -10 -10 -9 -8 -------- Run | Yrd Mat Min Exi Min Mat Hostile Shots Fired 190 | . 24 34 . 11 121 Missed 47 | . 5 11 . 4 27 Damage Taken 2044 | . 250 294 . 97 1403 Core 470 | . 69 69 . . 332 Absorbed by Shields . | . . . . . . Core Remaining (%) 72 | 100 . . . 44 . Volleys Fired 93 | . 37 17 . 7 32 Largest 2 | . 2 2 . 2 2 Hottest 115 | . 70 70 . 85 115 Shots Fired 180 | . 74 34 . 14 58 Gun 178 | . 74 34 . 12 58 Cannon . | . . . . . . Launcher 2 | . . . . 2 . Special . | . . . . . . Kinetic 80 | . 37 17 . 6 20 Thermal 98 | . 37 17 . 6 38 Explosive 2 | . . . . 2 . Electromagnetic . | . . . . . . Robot Hit Streak 19 | . 19 7 . 6 15 Robot Miss Streak 4 | . 4 2 . 1 3 Penetration Max . | . . . . . . Secondary Targets 3 | . 1 . . . 2 Max Gunslinging Chain 1 | . 1 . . . 1 Shots Hit Robots 127 | . 52 23 . 9 43 Core Hits 55 | . 17 15 . 8 15 Critical Kills . | . . . . . . Critical Parts Destroyed . | . . . . . . Critical Strikes 8 | . 2 1 . 1 4 Burn 6 | . 2 1 . 1 2 Sever 2 | . . . . . 2 Melee Attacks 7 | . . . . . 7 Impact . | . . . . . . Slashing 7 | . . . . . 7 Piercing . | . . . . . . Sneak Attacks . | . . . . . . Combat Hostiles . | . . . . . . Follow-up Attacks . | . . . . . . Damage Inflicted 1779 | . 582 297 . 178 722 Guns 1413 | . 582 255 . 97 479 Cannons . | . . . . . . Explosions 79 | . . . . 79 . Melee 242 | . . . . . 242 Ramming 45 | . . 42 . 2 1 Kinetic 434 | . 217 78 . 6 133 Thermal 979 | . 365 177 . 91 346 Explosive 79 | . . . . 79 . Electromagnetic . | . . . . . . Impact . | . . . . . . Slashing 242 | . . . . . 242 Piercing . | . . . . . . Highest Corruption 2 | . . . . . 2 Average Corruption 2 | . . . . . 2 Corruption Purged . | . . . . . . Corruption Blocked . | . . . . . . Overload Shots . | . . . . . . Overflow Damage . | . . . . . . Projectiles . | . . . . . . Explosions . | . . . . . . Melee . | . . . . . . Knockbacks . | . . . . . . Impact . | . . . . . . Kinetic . | . . . . . . Secondary . | . . . . . . Self-Inflicted Damage . | . . . . . . Shots . | . . . . . . Rammed 10 | 1 . 7 . 1 1 Targets Rammed 10 | 1 . 7 . 1 1 Kicked . | . . . . . . Crushed . | . . . . . . Highest Temperature 599 | . 263 165 . 152 599 Average Temperature 110 | . 74 62 . 75 177 Received Heat Transfer 900 | . 99 63 . . 738 Effects 12 | . . . . . 12 Shutdowns 3 | . . . . . 3 Energy Bleed 2 | . . . . . 2 Interference 3 | . . . . . 3 Short Circuit 1 | . . . . . 1 Damage (minor) 1 | . . . . . 1 Damage (major) 2 | . . . . . 2 Siege Activations . | . . . . . . Robots Corrupted . | . . . . . . Combat Hostiles . | . . . . . . Parts Fried . | . . . . . . Impact Corruptions . | . . . . . . Robots Melted . | . . . . . . Combat Hostiles . | . . . . . . Parts Melted 7 | . 1 3 . . 3 Heat Transferred 3108 | . 1221 592 . 296 999 Parts Sabotaged . | . . . . . . Parts Stolen . | . . . . . . Parts Stripped . | . . . . . . Power Chain Reactions . | . . . . . . Alert | -11 -10 -10 -10 -9 -8 ------- Run | Yrd Mat Min Exi Min Mat Peak Influence 211 | . 211 125 . 124 206 Initial 4 | . . 4 . . . Average 39 | . 68 21 . 26 60 Maximum Alert Level 1 | . 1 . . . 1 Low Security (%) 98 | 100 94 100 . 100 95 Level 1 1 | . 5 . . . 4 Level 2 . | . . . . . . Level 3 . | . . . . . . Level 4 . | . . . . . . Level 5 . | . . . . . . High Security . | . . . . . . Max Security . | . . . . . . Squads Dispatched 6 | . . . . . 6 Investigation . | . . . . . . Extermination . | . . . . . . Reinforcement 3 | . . . . . 3 Assault . | . . . . . . Garrison 3 | . . . . . 3 Intercept . | . . . . . . Searches Triggered . | . . . . . . Construction Impeded . | . . . . . . Haulers Reinforced . | . . . . . . Active Scanning Responses . | . . . . . . Cargo Convoy Interrupts . | . . . . . . Stealth | -11 -10 -10 -10 -9 -8 --------- Run | Yrd Mat Min Exi Min Mat Distress Signals 3 | . . . . . 3 Communications Jammed . | . . . . . . Distress Signals . | . . . . . . Times Spotted 46 | . 10 11 . 4 21 Peak Tracking Total 7 | . 5 5 . 4 7 Tactical Retreats 3 | . 1 1 . . 1 Traps | -11 -10 -10 -10 -9 -8 ------- Run | Yrd Mat Min Exi Min Mat Traps Triggered 2 | . 1 . . 1 . Indirectly . | . . . . . . Trap Hack Attempts . | . . . . . . Triggered . | . . . . . . Disarmed . | . . . . . . Reprogrammed . | . . . . . . Reused . | . . . . . . Traps Extracted . | . . . . . . Installed . | . . . . . . Triggered . | . . . . . . Machines | -11 -10 -10 -10 -9 -8 ---------- Run | Yrd Mat Min Exi Min Mat Machines Disabled 1 | . . . . . 1 Max in Single Turn 1 | . . . . . 1 Machines Repaired . | . . . . . . Machines Dismantled . | . . . . . . Machines Sabotaged . | . . . . . . Overloaded Fab Kills . | . . . . . . Hacking | -11 -10 -10 -10 -9 -8 --------- Run | Yrd Mat Min Exi Min Mat Machines Accessed 3 | . . . 2 1 . Terminals . | . . . . . . Fabricators . | . . . . . . Repair Stations . | . . . . . . Recycling Units . | . . . . . . Scanalyzers . | . . . . . . Garrison Access . | . . . . . . Total Hacks 25 | . . . 24 1 . Successful 25 | . . . 24 1 . Failed . | . . . . . . Catastrophic . | . . . . . . Database Lockouts . | . . . . . . Manual 1 | . . . 1 . . Terminals . | . . . . . . Fabricators . | . . . . . . Repair Stations . | . . . . . . Recycling Units . | . . . . . . Scanalyzers . | . . . . . . Garrison Access . | . . . . . . Terminal Hacks 25 | . . . 24 1 . Record 23 | . . . 23 . . Open Door 1 | . . . . 1 . Derelict Proto ID Bank 1 | . . . 1 . . Fabricator Hacks . | . . . . . . Repair Station Hacks . | . . . . . . Recycling Unit Hacks . | . . . . . . Scanalyzer . | . . . . . . Garrison Access Hacks . | . . . . . . Unauthorized Hacks . | . . . . . . Terminals . | . . . . . . Fabricators . | . . . . . . Repair Stations . | . . . . . . Recycling Units . | . . . . . . Scanalyzers . | . . . . . . Garrison Access . | . . . . . . Data Cores Recovered . | . . . . . . Used . | . . . . . . Hacking Detections . | . . . . . . Full Trace Events . | . . . . . . Feedback Events . | . . . . . . Feedback Blocked . | . . . . . . Robot Schematics Acquired . | . . . . . . Robots Built . | . . . . . . Authchips . | . . . . . . Time . | . . . . . . Total Robot Build Rating . | . . . . . . Part Schematics Acquired . | . . . . . . Parts Built . | . . . . . . Authchips . | . . . . . . Time . | . . . . . . Total Part Build Rating . | . . . . . . Parts Repaired . | . . . . . . Time . | . . . . . . Parts Recycled . | . . . . . . Recycled Matter . | . . . . . . Retrieved Matter . | . . . . . . Retrieved Components . | . . . . . . Parts Scanalyzed . | . . . . . . Part Schematics Acquired . | . . . . . . Parts Damaged . | . . . . . . Bothacking | -11 -10 -10 -10 -9 -8 ------------ Run | Yrd Mat Min Exi Min Mat Used RIF Installer . | . . . . . . Robots Hacked . | . . . . . . Non-combat . | . . . . . . Combat . | . . . . . . Robot Hacks Applied . | . . . . . . Relay Couplers Released . | . . . . . . Fabnet Peak Effective % . | . . . . . . Robots Rewired . | . . . . . . Allies Hacked . | . . . . . . Hacks Repelled . | . . . . . . Allies | -11 -10 -10 -10 -9 -8 -------- Run | Yrd Mat Min Exi Min Mat Total Allies 3 | . . . . 3 . Largest Group 3 | . . . . 3 3 Highest-Rated Group 40 | . . . . 40 40 Highest-Rated Ally 16 | . . . . 16 16 Total Orders . | . . . . . . Ally Attacks 44 | . . . . . 44 Total Damage 411 | . . . . . 411 Kills 3 | . . . . . 3 Allies Corrupted . | . . . . . . Allies Melted . | . . . . . . Intel | -11 -10 -10 -10 -9 -8 ------- Run | Yrd Mat Min Exi Min Mat Robot Analysis Total . | . . . . . . Derelict Logs Recovered 2 | . . 1 . 1 . Drone Launches . | . . . . . . Drone Recoveries . | . . . . . . Exploration | -11 -10 -10 -10 -9 -8 ------------- Run | Yrd Mat Min Exi Min Mat Turns Passed 4212 | 75 708 1341 395 891 802 Spaces Moved 2170 | 43 351 773 247 463 293 Core 13 | 8 . . . . 5 Treads 2042 | 35 351 773 247 463 173 Legs 115 | . . . . . 115 Wheels . | . . . . . . Hover . | . . . . . . Flight . | . . . . . . Fastest Speed 50 | 50 160 160 160 160 120 Average Speed 169 | 151 160 160 160 180 202 Slowest Speed 650 | 160 160 160 160 240 650 Overloaded Moves . | . . . . . . Propulsion Burnouts . | . . . . . . Robots Hopped . | . . . . . . Cave-ins Triggered . | . . . . . . Exploration Rate (%) 53 | 4 58 96 61 82 22 Regions Visited 5 Branch Regions 3 Pre-discovered Areas 2 | . . 1 1 . . Known Exits Taken . | . . . . . . Unknown Exits Taken 5 | 1 1 1 1 1 . Scrap Searched 4 | . . 1 . 3 . Spaces Dug . | . . . . . . Terrain Destroyed 16 | . . . . 16 . Melee . | . . . . . . Projectile . | . . . . . . AOE 16 | . . . . 16 . Terrain Rammed . | . . . . . . Walls Destroyed . | . . . . . . Machines Disabled . | . . . . . . Actions | -11 -10 -10 -10 -9 -8 --------- Run | Yrd Mat Min Exi Min Mat Total 2510 | 50 430 843 247 507 433 Wait 167 | . 36 46 . 15 70 Move 2165 | 42 350 772 246 462 293 Hop . | . . . . . . Pick Up 18 | 1 4 1 1 8 3 Fast Attach 16 | 6 1 . . 1 8 Attach 14 | . . . . 7 7 Detach 11 | . . . . 6 5 Swap 1 | . 1 . . . . Drop 8 | . 1 . . . 7 Fire 93 | . 37 17 . 7 32 Melee 7 | . . . . . 7 Ram 1 | . . . . . 1 Kick . | . . . . . . Crush 9 | 1 . 7 . 1 . Escape Stasis . | . . . . . . Rewire . | . . . . . . Trap . | . . . . . . Miscellaneous . | . . . . . . Route ------- -11/Scrapyard -10/Materials (discovered 2 exits: [*Mat] / [*Min]) -10/Mines (discovered 2 exits: [*Mat] / *Exi) -10/Exiles (discovered 2 exits: *Min x2) -9/Mines (discovered 2 exits: [*Mat x2]) -8/Materials (discovered 2 exits: [*Fac] / *Sto) History --------- Turn | Location | Event 18 | -11/Scrapyard | Discovered new exit (range 15) 76 | -11/Scrapyard | Entered Materials 305 | -10/Materials | Build established: Mutant 426 | -10/Materials | Discovered new exit (range 12) 562 | -10/Materials | Discovered new exit (range 11) 784 | -10/Materials | Entered Mines 832 | -10/Mines | Met a Derelict bent on vengeance 859 | -10/Mines | Assembled infested the area 924 | -10/Mines | Discovered new exit (range 5) 957 | -10/Mines | Met 8R-AWN 1370 | -10/Mines | Discovered new exit (range 9) 1546 | -10/Mines | Core integrity fell below 50% 2125 | -10/Mines | Entered Exiles 2151 | -10/Exiles | Discovered new exit (range 15) 2165 | -10/Exiles | Welcomed by 8R-AWN 2191 | -10/Exiles | Met EX-HEX 2236 | -10/Exiles | Met EX-BIN 2313 | -10/Exiles | Aligned with FarCom system 2314 | -10/Exiles | Given EX-Vault access code 2356 | -10/Exiles | Opened EX-Vault 2365 | -10/Exiles | Found Superbattery 2398 | -10/Exiles | Warned to stay clear of 0b10 Research branches 2445 | -10/Exiles | Met EX-DEC 2458 | -10/Exiles | Learned location of Zion (-7) 2502 | -10/Exiles | Discovered new exit (range 14) 2520 | -10/Exiles | Left Exiles lab with Superbattery 2520 | -10/Exiles | Entered Mines 2521 | -9/Mines | YI-UF0 nonchalantly dropped a Grenade Launcher on the ground 2690 | -9/Mines | Learned location of 1 exit from Materials 2838 | -9/Mines | Met a Derelict who couldn't figure out how to use a Trap Extractor 2866 | -9/Mines | Found Corrupted Powered Armor 2939 | -9/Mines | Assisted by bots powering up and referring to "LRC-V3" 3047 | -9/Mines | Discovered new exit (range 7) 3204 | -9/Mines | Discovered new exit (range 7) 3233 | -9/Mines | Received a Rocket Launcher from a helpful Derelict 3411 | -9/Mines | Entered Materials 3411 | -8/Materials | Accompanied by 3 allies 3411 | -8/Materials | Evolved 4 slots: Propulsion x1, Utility x3 3412 | -8/Materials | Identified exit to Storage 3837 | -8/Materials | Garrison activated, responded to threat 3947 | -8/Materials | Lost 3 allies 3969 | -8/Materials | Lost 3 parts (1n1u1w) 4123 | -8/Materials | Discovered new exit (range 9) 4212 | -8/Materials | Core integrity fell below 50% 4213 | -8/Materials | Self-destructed Last Messages --------------- Acquired Greatsword. EXIT=FOUND ALERT: Hostiles spotted, dispatching reinforcements to Terminal M006. Lgt. Ion Engine destroyed. Lgt. Assault Rifle destroyed. Carbon-fiber Leg destroyed. Dropped Lgt. Assault Rifle. Y-45 Defender Hvy. Assault Rifle severed. Carbon-fiber Leg destroyed. Y-45 Defender destroyed. G-47 Trooper Aluminum Leg severed. Greatsword destroyed. Dropped Corrupted Gatling Laser. Dropped Corrupted Gauss Rifle. Acquired Lgt. Assault Rifle. Lgt. Assault Rifle destroyed. Critical hit (Burn: +37). Acquired Corrupted Gauss Rifle. Integrated Corrupted Gauss Rifle (+2). Slammed into Y-45 Defender. Map ----- +----------------------------------------------------+ | ???????????? ????????? #?????????? | | ???????????? ???????? #?????????? | | ???????????? ???????? #?????????? | | ????????????# #???????? #?????????? | | ????????????# #???????# #?????????? | | ????????????# #???????# #?????????? | | ????????????# ##??????# #?????????? | | ????????????# ???????# #?????????? | | ????????????# #???????# #?????????? | | ????????????# #???????# #?????????? | | ???????###### ######### #?????????? | | ???????# #?????????? | | ???????# #?????????? | | ???????# # /####### #?????????? | | ???????# # #?????# #?????????? | | ???????# #/ [[!!#?????# #?????????? | | ???????# #//[[!!#?????# #?????????? | | ???????# ########?????# #??#####??? | | ???????# #????????????# #??#"""#??? | | ?????### ############## ####"Y"#### | | ?????# ^ | | ?????# < u ^ | | ?????# ugY """ | | ?????######g#############=! """ | | ??????# !Yg #???????#=] ^ """ | | ??????# =@ #???????#=] """ | | ??????# = Y #???????# | | ??????# #???????# ! | | ??????# """ """ #??????+ | | ??????# """ """ #??????####T# | | ??????# """ """ #?????????### ##### | | ??????# #???????????# #???? | | ??????#?#########???????????# #???? | | ????????????????????????????# #???? | | ????????????????????????????# #???? | | ????????????????????????????# ????? | | ????????????????????????????? ????? | | ????????????????????????????????????? | | ????????????????????????????????????? | | ????????????????????????????????????? | | ????????????????????????????????????? | | ????????????????????????????????????? | | ????????????????????????????????????? | | ????????????????????????????????????? | | ????????????????????????????????????? | | ????????????????????????????????????? | | ????????????????????????????????????? | | ????????????????????????????????????? | | ????????????????????????????????????? | | ????????????????????????????????????? | +----------------------------------------------------+ Best States ------------- Heat Dissipation 31 Energy Generation 10 Energy Capacity 250 Matter Stores 300 Matter Capacity 300 Sight Range 16 Robot Scan Range 15 Terrain Scan Density 10 Armor Coverage 450 Evasion (%) 55 Recoil Reduction 2 Particle Charging 15 Item Schematics ----------------- None Robot Schematics ------------------ None Fabricated ------------ Nothing Alien Tech Used ----------------- None Achievements -------------- None Challenges ------------ None Game ------ Seed ImprovedDefenseField Manual? 0 Play Time 00:25:12 Cumulative 17.9 hours Start 2024.08.26 @ 08:54:46 End 2024.08.26 @ 09:17:32 Sessions 1 Manual Loads 0 Difficulty Rogue Special Mode None Game No. 22 Rogue 10 Adventurer 12 Explorer 0 Win Type - Total 0 Types 0/0/0/0/0/0/0/0/0 Lore% 8 Gallery% 16 Achievement% 15 Wizard Run 0 Options --------- Layout 0 ASCII 0 Keyboard 1 Movement Numpad Keybinds 0 Fullscreen 2 Font 24/Smallcaps Map View 113x50 Zoom Use 0% Tactical HUD 0 Map Filters NONE Filters NONE Steam 1 RUN: 455e4495-37d4-4ece-a4b1-f1a602a3f776